bitfinex-derivatives/quotes_BTCF0:USTF0_20210102
["timestamp","ask_amount","ask_price","bid_price","bid_amount"]
[1609624833700,4.4421,31676.0,31669.0,0.03880899]
[1609624833900,5.4421,31676.0,31674.0,0.00039473]
[1609624834101,5.4421,31676.0,31674.0,0.15013]
[1609624834501,5.4421,31676.0,31675.0,0.00039473]
[1609624836606,5.4421,31676.0,31664.0,1.0]
[1609624836803,5.4421,31676.0,31651.0,2.05020891]
[1609624836804,1.02919199,31676.0,31646.0,2.03855837]
[1609624837004,3.6446,31666.0,31665.0,0.03920864]
[1609624837205,4.6446,31666.0,31665.0,0.03881386]
[1609624837405,1.0,31666.0,31657.0,1.0]
[1609624837606,3.9915,31664.0,31657.0,1.0]
[1609624837805,1.0,31664.0,31658.0,0.03921178]
[1609624838005,4.3262,31660.0,31658.0,0.03921178]
[1609624838205,5.3262,31660.0,31658.0,0.21215178]
[1609624838405,0.18043158,31659.0,31658.0,0.21215178]
[1609624838605,1.18043158,31659.0,31658.0,0.17294]
[1609624838806,1.18043158,31659.0,31658.0,0.17333486]
[1609624840509,0.2714,31669.0,31658.0,0.17333486]
[1609624840909,0.2714,31669.0,31659.0,0.00039483]
[1609624842311,0.18043158,31660.0,31659.0,0.00039483]
[1609624842512,0.2714,31669.0,31659.0,0.00039483]
[1609624843615,0.2714,31669.0,31658.0,0.17294]
[1609624843816,0.2714,31669.0,31660.0,0.00039482]
[1609624844214,0.2714,31669.0,31659.0,0.00039482]
[1609624844419,0.18043158,31660.0,31659.0,0.14823]
[1609624844617,0.2714,31669.0,31660.0,0.00039482]
[1609624844817,0.2714,31669.0,31659.0,0.14862482]
[1609624845217,3.5601,31662.0,31660.0,0.00039482]
[1609624845919,1.48918,31662.0,31660.0,0.00039482]
[1609624846121,0.65716,31662.0,31660.0,0.00039482]
[1609624846320,0.18043158,31661.0,31660.0,0.00039482]
[1609624846620,1.0,31668.0,31660.0,0.00039482]
[1609624846822,1.0,31665.0,31660.0,0.00039482]
[1609624847421,0.0956,31664.0,31660.0,0.00039482]
[1609624848420,0.18043158,31661.0,31660.0,0.00039482]
[1609624848620,0.18043158,31661.0,31654.0,0.00039494]
[1609624848822,0.18043158,31661.0,31660.0,0.00039494]
[1609624849222,4.61083158,31661.0,31655.0,0.00039494]
[1609624849424,4.61083158,31661.0,31660.0,0.00039494]
[1609624849624,4.61083158,31661.0,31656.0,0.00039494]
[1609624849922,4.61083158,31661.0,31660.0,0.00039494]
[1609624850122,4.61083158,31661.0,31657.0,0.00039494]
[1609624850522,4.61083158,31661.0,31660.0,0.00039494]
[1609624850722,4.61083158,31661.0,31658.0,0.00039496]
[1609624850923,1.0,31660.0,31648.0,0.14576]
[1609624851224,1.0,31660.0,31648.0,0.10996]
[1609624851427,1.0,31660.0,31649.0,0.00039498]
[1609624851927,1.0,31660.0,31644.0,0.000395]
[1609624852327,0.18043158,31645.0,31644.0,0.000395]
[1609624852528,5.32343158,31645.0,31644.0,0.000395]
[1609624852729,5.32343158,31645.0,31642.0,0.000395]
[1609624853730,0.18043158,31645.0,31642.0,0.000395]
[1609624853930,0.18043158,31645.0,31638.0,0.00039503]
[1609624854131,5.48583158,31645.0,31643.0,0.00039503]
[1609624854331,5.48583158,31645.0,31639.0,0.00039503]
[1609624854633,5.48583158,31645.0,31638.0,0.00039503]
[1609624854832,0.18043158,31645.0,31638.0,0.00039503]
[1609624855032,5.2121,31641.0,31640.0,0.00039505]
[1609624855232,5.2121,31641.0,31639.0,0.00039505]
[1609624855433,5.2121,31641.0,31640.0,0.00039505]
[1609624855936,5.2121,31641.0,31635.0,0.18043158]
[1609624856137,5.38449,31641.0,31635.0,0.18043158]
[1609624856338,5.38449,31641.0,31640.0,0.00039504]
[1609624856539,5.38449,31641.0,31636.0,0.00039504]
[1609624856738,5.38449,31641.0,31640.0,0.00039504]
[1609624856940,5.38449,31641.0,31637.0,0.00039504]
[1609624857341,5.38449,31641.0,31636.0,0.00039504]
[1609624857542,5.38449,31641.0,31638.0,0.00039504]
[1609624857743,5.38449,31641.0,31637.0,0.00039508]
[1609624858043,5.38449,31641.0,31636.0,0.0003951]
[1609624858244,5.38449,31641.0,31638.0,0.00039507]
[1609624858443,0.18043158,31639.0,31638.0,0.00039507]
[1609624858643,0.18043158,31639.0,31636.0,0.00039507]
[1609624858843,0.18043158,31639.0,31638.0,0.0003951]
[1609624859043,0.18043158,31639.0,31637.0,0.0003951]
[1609624859445,0.18043158,31639.0,31636.0,0.0003951]
[1609624859646,0.18043158,31639.0,31638.0,0.00039513]
[1609624859845,3.72723158,31639.0,31637.0,0.00039513]
[1609624860244,0.18043158,31639.0,31636.0,0.00039515]
[1609624860445,0.18043158,31639.0,31638.0,0.00039515]
[1609624860645,0.18043158,31639.0,31637.0,0.00039515]
[1609624861046,0.18043158,31639.0,31636.0,0.00039515]
[1609624861247,0.18043158,31639.0,31638.0,0.00039515]
[1609624861446,0.18043158,31639.0,31637.0,0.00039515]
[1609624861851,0.18043158,31639.0,31638.0,0.00039515]
[1609624862250,0.18043158,31639.0,31636.0,0.00039515]
[1609624862648,0.18043158,31639.0,31638.0,0.00039515]
[1609624862848,0.18043158,31639.0,31637.0,0.00039517]
[1609624863049,0.18043158,31639.0,31635.0,0.03]
[1609624863250,0.18043158,31639.0,31638.0,0.00039517]
[1609624863551,0.18043158,31639.0,31636.0,0.0003952]
[1609624863852,0.18043158,31639.0,31638.0,0.0003952]
[1609624864152,0.18043158,31639.0,31637.0,0.00039518]
[1609624864351,0.18043158,31639.0,31638.0,0.00039518]
[1609624864852,0.18043158,31639.0,31636.0,0.00039518]
[1609624867356,0.17239,31641.0,31638.0,3.6829]
[1609624867554,0.0942,31644.0,31638.0,3.6829]
[1609624867754,0.0942,31644.0,31639.0,0.00039237]
[1609624867955,0.0942,31644.0,31639.0,0.15198237]
[1609624868157,0.02883185,31648.0,31639.0,0.15198237]
[1609624868355,0.02883185,31648.0,31640.0,0.00039228]
[1609624868557,0.02883185,31648.0,31647.0,4.89383158]
[1609624868757,0.02880128,31654.0,31647.0,4.89383158]
[1609624868959,0.02880128,31654.0,31647.0,0.18043158]
[1609624869156,0.0946,31651.0,31648.0,0.00039226]
[1609624869356,0.02880128,31654.0,31648.0,0.00039226]
[1609624869560,0.56863568,31655.0,31650.0,5.2817]
[1609624869760,0.56863568,31655.0,31652.0,0.011]
[1609624869962,0.15871,31666.0,31652.0,0.011]
[1609624870161,0.15871,31666.0,31653.0,0.00039221]
[1609624870562,0.15871,31666.0,31663.0,0.18043158]
[1609624870763,0.56876771,31667.0,31663.0,0.18043158]
[1609624870962,0.56876771,31667.0,31666.0,4.7178]
[1609624871162,0.2782,31671.0,31666.0,4.7178]
[1609624871563,0.2782,31671.0,31667.0,0.00039215]
[1609624872468,0.2782,31671.0,31669.0,0.18043158]
[1609624872866,0.2782,31671.0,31669.0,0.18082373]
[1609624876568,0.53643158,31670.0,31669.0,0.00039215]
[1609624877069,0.53643158,31670.0,31667.0,0.00039218]
[1609624877269,0.65420158,31670.0,31669.0,0.00039218]
[1609624877571,0.65420158,31670.0,31668.0,0.00039218]
[1609624877772,0.65420158,31670.0,31669.0,0.0003922]
[1609624878072,0.65420158,31670.0,31667.0,0.0003922]
[1609624878271,0.65420158,31670.0,31666.0,4.7057]
[1609624878671,1.22524545,31670.0,31667.0,0.00039222]
[1609624880377,0.57129555,31668.0,31667.0,0.00039222]
[1609624882176,0.57129555,31668.0,31666.0,4.6935]
[1609624883980,0.5432952,31667.0,31666.0,4.6935]
[1609624884379,0.5432952,31667.0,31666.0,4.69389221]
[1609624885883,1.23000911,31667.0,31666.0,4.69389221]
[1609624886283,1.23000911,31667.0,31666.0,4.6935]
[1609624886683,1.23000911,31667.0,31655.0,1.0]
[1609624886884,2.23000911,31667.0,31665.0,4.071]
[1609624887485,3.0699225,31667.0,31665.0,4.071]
[1609624887885,1.99187924,31666.0,31665.0,4.071]
[1609624888185,1.99187924,31666.0,31652.0,0.011]
[1609624888385,0.0935,31665.0,31652.0,0.011]
[1609624888586,0.18043158,31653.0,31652.0,0.011]
[1609624889186,0.18043158,31653.0,31652.0,0.01139227]
[1609624890888,0.18043158,31653.0,31652.0,0.011]
[1609624891987,0.18043158,31653.0,31652.0,0.00039233]
[1609624892387,0.18043158,31653.0,31647.0,0.00039233]
[1609624892588,0.18043158,31653.0,31644.0,4.5058]
[1609624892589,0.18043158,31648.0,31644.0,4.5058]
[1609624893192,0.18043158,31648.0,31644.0,4.4548]
[1609624893390,0.32983158,31648.0,31644.0,4.4548]
[1609624893589,0.32983158,31648.0,31645.0,0.00039238]
[1609624893789,0.32983158,31648.0,31635.0,0.18043158]
[1609624893990,0.32983158,31648.0,31645.0,0.00039238]
[1609624894191,0.32983158,31648.0,31636.0,0.00039238]
[1609624894390,1.0,31647.0,31646.0,0.00039238]
[1609624894791,1.0,31647.0,31637.0,0.00039241]
[1609624894992,0.0948,31646.0,31634.0,4.7726]
[1609624895190,0.1771,31645.0,31638.0,0.00039243]
[1609624895391,1.1771,31645.0,31635.0,0.00039243]
[1609624895591,3.7465,31643.0,31635.0,0.00039243]
[1609624895792,0.0946,31642.0,31626.0,5.2275]
[1609624895991,0.0946,31642.0,31636.0,0.00039243]
[1609624896190,0.0946,31642.0,31627.0,0.03924404]
[1609624896491,0.0946,31642.0,31627.0,0.00039243]
[1609624896692,0.18043158,31628.0,31626.0,5.2275]
[1609624897093,0.18043158,31628.0,31627.0,0.00039245]
[1609624897493,0.18043158,31628.0,31626.0,5.2275]
[1609624897793,0.18043158,31628.0,31627.0,0.00039245]
[1609624898195,0.18043158,31628.0,31627.0,0.00078492]
[1609624900699,0.18043158,31628.0,31627.0,0.00039245]
[1609624900900,1.18043158,31628.0,31627.0,0.00039245]
[1609624901103,0.18043158,31628.0,31627.0,0.00039245]
[1609624902404,0.74913158,31628.0,31627.0,0.00039245]
[1609624902607,1.74913158,31628.0,31617.0,4.6766]
[1609624902804,0.74913158,31628.0,31617.0,4.6766]
[1609624903007,0.74913158,31628.0,31618.0,0.00039262]
[1609624903304,0.74913158,31628.0,31617.0,4.6766]
[1609624903706,0.0954,31627.0,31609.0,0.14968]
[1609624903906,4.6956,31620.0,31618.0,0.00039262]
[1609624904106,4.6956,31620.0,31610.0,0.00039262]
[1609624904506,1.0,31620.0,31609.0,0.14968]
[1609624904708,4.65783158,31610.0,31600.0,1.0]
[1609624905308,4.65783158,31610.0,31601.0,0.00039276]
[1609624906310,4.65783158,31610.0,31600.0,1.0]
[1609624906707,0.18043158,31601.0,31600.0,1.0]
[1609624907115,0.34966158,31601.0,31600.0,1.0]
[1609624912310,0.34966158,31601.0,31600.0,0.5292]
[1609624912710,1.34966158,31601.0,31600.0,0.5292]
[1609624912910,2.34966158,31601.0,31600.0,0.5292]
[1609624913613,1.34966158,31601.0,31600.0,0.5292]
[1609624915015,2.34966158,31601.0,31600.0,0.5292]
[1609624915216,1.34966158,31601.0,31600.0,0.5292]
[1609624915817,1.34966158,31601.0,31600.0,0.4962]
[1609624916218,2.34966158,31601.0,31600.0,0.4519]
[1609624916819,2.34966158,31601.0,31600.0,0.0631]
[1609624917018,2.34966158,31601.0,31582.0,3.5925]
[1609624917820,2.34966158,31601.0,31583.0,0.00039304]
[1609624918320,2.34966158,31601.0,31582.0,3.5925]
[1609624918621,2.16923,31601.0,31584.0,0.00039305]
[1609624918822,2.16923,31601.0,31583.0,0.00039309]
[1609624919021,1.0,31593.0,31583.0,0.00039309]
[1609624919221,1.1073,31593.0,31583.0,0.00039309]
[1609624920723,0.18043158,31584.0,31583.0,0.00039309]
[1609624921124,0.18043158,31584.0,31583.0,4.33669309]
[1609624921325,0.18043158,31584.0,31583.0,4.3363]
[1609624921525,0.18043158,31584.0,31583.0,4.33669306]
[1609624921726,0.2706,31592.0,31583.0,4.33669306]
[1609624922326,0.2706,31592.0,31584.0,0.00039304]
[1609624922726,0.18043158,31585.0,31584.0,0.00039304]
[1609624926027,0.18043158,31585.0,31584.0,5.1691]
[1609624926228,0.18043158,31585.0,31584.0,5.16949308]
[1609624926829,0.18043158,31585.0,31584.0,0.00039308]
[1609624927030,0.18043158,31585.0,31584.0,0.03930845]
[1609624927232,0.18043158,31585.0,31582.0,0.03930779]
[1609624929136,0.18043158,31585.0,31581.0,0.17043158]
[1609624929336,0.18043158,31585.0,31584.0,4.8107]
[1609624929637,0.18043158,31585.0,31584.0,4.8500052]
[1609624930536,0.2706,31592.0,31584.0,4.8500052]
[1609624930736,0.2706,31592.0,31590.0,0.18043158]
[1609624930936,0.2706,31592.0,31591.0,0.6608]
[1609624931339,0.1073,31593.0,31591.0,0.70010453]
[1609624931539,0.1073,31593.0,31591.0,0.03930453]
[1609624931737,0.16923,31601.0,31592.0,4.39050279]
[1609624932137,0.2932,31609.0,31592.0,0.03930279]
[1609624932340,4.46044,31598.0,31593.0,0.03929293]
[1609624932739,0.0199,31582.0,31579.0,0.07780366]
[1609624932939,0.0199,31582.0,31577.0,5.24333714]
[1609624933141,0.0199,31582.0,31580.0,0.03929643]
[1609624933340,0.0199,31582.0,31578.0,0.11710634]
[1609624933640,0.0199,31582.0,31581.0,0.03929689]
[1609624933841,0.0199,31582.0,31579.0,0.03929733]
[1609624934240,0.0199,31582.0,31578.0,0.11710745]
[1609624934442,0.0199,31582.0,31580.0,0.03930082]
[1609624934641,0.0199,31582.0,31579.0,0.03930181]
[1609624934841,0.0199,31582.0,31581.0,0.18043158]
[1609624935040,0.0199,31582.0,31581.0,0.21973393]
[1609624935643,0.0199,31582.0,31581.0,0.03930235]
[1609624935842,0.6356,31582.0,31581.0,0.03930235]
[1609624936043,0.6356,31582.0,31579.0,0.11712794]
[1609624936244,0.6356,31582.0,31581.0,0.03930608]
[1609624936644,0.6356,31582.0,31580.0,0.03930706]
[1609624936844,0.6356,31582.0,31581.0,0.03930728]
[1609624937245,0.6356,31582.0,31579.0,0.11713123]
[1609624937646,0.6356,31582.0,31577.0,0.11714361]
[1609624937846,0.6356,31582.0,31580.0,0.03930874]
[1609624938045,0.6356,31582.0,31578.0,0.03930977]
[1609624938445,0.6356,31582.0,31577.0,0.11714385]
[1609624938645,0.6356,31582.0,31579.0,0.03931074]
[1609624938847,0.6356,31582.0,31577.0,0.07783424]
[1609624938848,0.18043158,31580.0,31578.0,0.03930989]
[1609624939249,0.18043158,31580.0,31568.0,4.2376]
[1609624939449,0.18043158,31580.0,31579.0,0.03930953]
[1609624939649,0.18043158,31580.0,31569.0,0.11714404]
[1609624940050,0.18043158,31580.0,31579.0,0.0393097]
[1609624940248,0.18043158,31580.0,31570.0,0.03930963]
[1609624940448,0.18043158,31580.0,31579.0,0.03930953]
[1609624940648,0.18043158,31580.0,31579.0,0.03891728]
[1609624940849,0.18043158,31580.0,31579.0,1.0]
[1609624941050,0.18043158,31580.0,31579.0,1.03931214]
[1609624942851,0.18043158,31580.0,31579.0,0.03931214]
[1609624943352,0.18043158,31580.0,31577.0,0.03931174]
[1609624943552,0.18043158,31580.0,31579.0,0.03891939]
[1609624943752,0.18043158,31580.0,31579.0,0.03931166]
[1609624943952,0.18043158,31580.0,31577.0,0.03931183]
[1609624944153,0.18043158,31580.0,31579.0,0.03931164]
[1609624944453,0.18043158,31580.0,31578.0,0.0393116]
[1609624944653,0.18043158,31580.0,31579.0,0.0393117]
[1609624945254,0.18043158,31580.0,31577.0,0.03931118]
[1609624945454,0.18043158,31580.0,31579.0,0.0393114]
[1609624945654,0.18043158,31580.0,31579.0,0.00039227]
[1609624945853,0.18043158,31580.0,31578.0,0.03931117]
[1609624946053,0.18043158,31580.0,31579.0,0.00039227]
[1609624946254,0.18043158,31580.0,31579.0,0.03931246]
[1609624946554,0.18043158,31580.0,31577.0,0.03931239]
[1609624946753,0.18043158,31580.0,31579.0,0.03931237]
[1609624947155,0.18043158,31580.0,31578.0,0.03931359]
[1609624947354,0.18043158,31580.0,31579.0,0.03931335]
[1609624947857,0.18043158,31580.0,31577.0,0.03931319]
[1609624948055,0.18043158,31580.0,31579.0,0.03931425]
[1609624948356,0.18043158,31580.0,31577.0,0.03931548]
[1609624948556,0.18043158,31580.0,31579.0,0.0389237]
[1609624948756,0.18043158,31580.0,31579.0,0.03931601]
[1609624948957,0.18043158,31580.0,31577.0,0.03931614]
[1609624949158,0.18043158,31580.0,31579.0,0.03931619]
[1609624949359,0.18043158,31580.0,31578.0,0.03931598]
[1609624949759,0.18043158,31580.0,31577.0,0.03931581]
[1609624949958,0.18043158,31580.0,31579.0,0.03931525]
[1609624950159,0.18043158,31580.0,31578.0,0.03931512]
[1609624950461,0.18043158,31580.0,31577.0,0.03931532]
[1609624950760,0.18043158,31580.0,31579.0,0.03931426]
[1609624950961,0.18043158,31580.0,31578.0,0.03931468]
[1609624951362,0.18043158,31580.0,31575.0,0.03931428]
[1609624951560,0.18043158,31580.0,31579.0,0.03931487]
[1609624951762,0.18043158,31580.0,31576.0,0.03931608]
[1609624952062,0.18043158,31580.0,31579.0,0.03931655]
[1609624952262,0.18043158,31580.0,31579.0,0.00039231]
[1609624952462,0.18043158,31580.0,31577.0,0.03931637]
[1609624952663,0.18043158,31580.0,31579.0,0.00039231]
[1609624952864,0.18043158,31580.0,31574.0,0.18043158]
[1609624952865,0.18043158,31580.0,31578.0,0.03931615]
[1609624953065,0.18043158,31580.0,31579.0,0.00039231]
[1609624953365,0.18043158,31580.0,31579.0,0.03931603]
[1609624953566,0.18043158,31580.0,31575.0,0.03931594]
[1609624954867,0.18043158,31576.0,31575.0,0.03931594]
[1609624956970,0.18043158,31576.0,31575.0,1.03931594]
[1609624958873,0.18043158,31576.0,31575.0,0.03931594]
[1609624961075,0.18043158,31576.0,31575.0,0.73701594]
[1609624962977,0.18043158,31576.0,31575.0,1.73701594]
[1609624966984,0.18043158,31576.0,31575.0,0.73701594]
[1609624968483,0.14943,31578.0,31575.0,0.73701594]
[1609624968883,0.18043158,31581.0,31576.0,0.03931043]
[1609624970888,0.18043158,31581.0,31580.0,1.0]
[1609624971088,0.18043158,31581.0,31580.0,1.18043158]
[1609624971288,0.18043158,31581.0,31580.0,1.21973925]
[1609624971490,0.18043158,31581.0,31580.0,1.86453925]
[1609624972788,0.0199,31582.0,31580.0,1.86453925]
[1609624972990,0.0199,31582.0,31580.0,0.21973925]
[1609624973195,0.0199,31582.0,31581.0,0.03930567]
[1609624973389,0.0199,31582.0,31581.0,4.77500567]
[1609624974888,0.0199,31582.0,31581.0,5.77500567]
[1609624975691,0.18043158,31589.0,31581.0,5.77500567]
[1609624975894,0.86221742,31594.0,31581.0,6.77500567]
[1609624976094,0.86221742,31594.0,31582.0,0.03930229]
[1609624976291,0.56691239,31593.0,31582.0,0.03930229]
[1609624976992,0.56691239,31593.0,31592.0,0.18043158]
[1609624977390,0.56691239,31593.0,31592.0,0.18082374]
[1609624977791,0.56691239,31593.0,31592.0,0.2197316]
[1609624978094,0.56691239,31593.0,31592.0,0.18082374]
[1609624978497,0.56727021,31596.0,31592.0,0.18082374]
[1609624978792,0.56727021,31596.0,31593.0,4.3622]
[1609624978994,0.10564,31598.0,31595.0,1.0]
[1609624979394,0.56760488,31601.0,31596.0,0.00039213]
[1609624980096,0.56753267,31600.0,31596.0,0.00039213]
[1609624980794,0.56744292,31601.0,31596.0,0.00039213]
[1609624980995,0.56744292,31601.0,31598.0,1.0]
[1609624981194,0.56744292,31601.0,31598.0,1.18043158]
[1609624981394,0.56744292,31601.0,31600.0,4.4636]
[1609624981794,0.56744292,31601.0,31600.0,4.46399213]
[1609624982898,0.56744292,31601.0,31600.0,5.46399213]
[1609624983097,0.74657359,31602.0,31600.0,5.46399213]
[1609624983697,0.74657359,31602.0,31600.0,5.4566]
[1609624984298,0.18043158,31602.0,31600.0,5.4566]
[1609624984899,0.18043158,31602.0,31600.0,4.4566]
[1609624986202,1.70816197,31601.0,31600.0,4.4566]
[1609624986600,1.70816197,31601.0,31600.0,4.45699218]
[1609624986799,1.82547197,31601.0,31600.0,4.45699218]
[1609624987802,2.65339499,31601.0,31600.0,4.45699218]
[1609624990808,2.65339499,31601.0,31600.0,0.00039218]
[1609624991308,2.65339499,31601.0,31592.0,4.1806]
[1609624991510,2.65339499,31601.0,31600.0,0.00038934]
[1609624991907,2.65339499,31601.0,31593.0,0.00038934]
[1609624992108,2.65339499,31601.0,31600.0,0.00038934]
[1609624992308,2.65339499,31601.0,31594.0,0.00038936]
[1609624992609,2.65339499,31601.0,31600.0,0.00038936]
[1609624992808,2.65339499,31601.0,31595.0,0.00038936]
[1609624993010,3.65339499,31601.0,31595.0,0.00038936]
[1609624993213,3.65339499,31601.0,31592.0,4.1806]
[1609624993214,0.01897217,31594.0,31593.0,0.00038936]
[1609624993411,0.01897217,31594.0,31592.0,4.1806]
[1609624993612,0.18948217,31594.0,31593.0,0.00038937]
[1609624994013,0.73409293,31594.0,31593.0,0.00038937]
[1609624996018,0.73448213,31594.0,31593.0,0.00038937]
[1609624996219,0.73409293,31594.0,31593.0,0.00038937]
[1609624996518,0.82938214,31594.0,31593.0,0.00038937]
[1609624997120,0.82938214,31594.0,31588.0,0.00038944]
[1609624997319,0.82938214,31594.0,31593.0,0.00038944]
[1609624997519,0.82899293,31594.0,31589.0,0.00038947]
[1609624997819,0.82899293,31594.0,31586.0,0.00038947]
[1609624998119,0.73409293,31594.0,31590.0,0.00038947]
[1609624998320,0.73409293,31594.0,31585.0,4.5051]
[1609624998622,0.73409293,31594.0,31586.0,0.00038948]
[1609624998920,1.0,31593.0,31586.0,0.00038948]
[1609624999120,0.18043158,31587.0,31586.0,0.00038948]
[1609624999321,0.27663158,31587.0,31586.0,0.00038948]
[1609624999521,0.18043158,31587.0,31586.0,0.00038948]
[1609624999722,0.31128158,31587.0,31586.0,0.00038948]
[1609625002929,0.31128158,31587.0,31586.0,1.00038948]
[1609625003130,0.96841067,31587.0,31586.0,1.00038948]
[1609625003631,0.87231067,31587.0,31586.0,1.00038948]
[1609625004935,0.87231067,31587.0,31586.0,0.00038948]
[1609625009340,0.96741067,31587.0,31586.0,0.00038948]
[1609625012345,2.10434175,31587.0,31586.0,0.00038948]
[1609625014748,2.10434175,31587.0,31585.0,0.03]
[1609625014948,0.0958,31586.0,31577.0,4.8548]
[1609625015348,0.18043158,31578.0,31577.0,4.8548]
[1609625015549,0.34983158,31578.0,31577.0,4.8548]
[1609625015750,0.34983158,31578.0,31577.0,4.85518949]
[1609625017552,0.34983158,31578.0,31577.0,0.00038949]
[1609625017749,5.61873158,31578.0,31577.0,0.00038949]
[1609625018149,5.61873158,31578.0,31563.0,0.03931806]
[1609625018349,5.61873158,31578.0,31577.0,0.00038952]
[1609625018550,5.61873158,31578.0,31564.0,0.00038952]
[1609625018850,5.61873158,31578.0,31563.0,0.03931808]
[1609625019051,5.61873158,31578.0,31566.0,1.0]
[1609625019251,0.18043158,31567.0,31566.0,1.0]
[1609625019654,0.18043158,31567.0,31566.0,1.00038956]
[1609625019852,4.71693158,31567.0,31566.0,1.00038956]
[1609625020557,4.71693158,31567.0,31566.0,1.0]
[1609625020756,4.71693158,31567.0,31566.0,1.00038959]
[1609625020955,4.71693158,31567.0,31566.0,0.00038959]
[1609625021357,4.71693158,31567.0,31561.0,0.18043158]
[1609625021560,4.71693158,31567.0,31562.0,0.00038962]
[1609625022159,4.71693158,31567.0,31561.0,0.00038964]
[1609625022360,4.71693158,31567.0,31563.0,0.00038968]
[1609625022559,0.18043158,31567.0,31562.0,0.00038972]
[1609625022760,0.18043158,31567.0,31564.0,0.00038972]
[1609625023163,3.9788,31565.0,31561.0,0.00038972]
[1609625023362,0.18043158,31562.0,31549.0,3.997]
[1609625023562,0.18043158,31562.0,31547.0,0.18043158]
[1609625023764,5.288,31559.0,31547.0,0.18043158]
[1609625023963,5.288,31559.0,31557.0,0.00038976]
[1609625024164,3.7047,31558.0,31548.0,0.0003898]
[1609625024364,3.7047,31558.0,31542.0,4.0193]
[1609625024765,3.7047,31558.0,31549.0,0.14421981]
[1609625024966,3.8006,31558.0,31549.0,0.14383]
[1609625025165,3.8006,31558.0,31550.0,0.00038981]
[1609625025365,0.18043158,31551.0,31550.0,0.00038981]
[1609625026070,0.18043158,31551.0,31540.0,0.18043158]
[1609625026466,0.18043158,31551.0,31541.0,0.00038986]
[1609625026667,3.7992,31549.0,31541.0,0.00038986]
[1609625027367,0.18043158,31542.0,31541.0,0.00038986]
[1609625027767,3.81163158,31542.0,31541.0,0.00038986]
[1609625028167,0.18043158,31542.0,31523.0,2.11455645]
[1609625028369,4.7238,31534.0,31523.0,2.11455645]
[1609625028569,4.7238,31534.0,31524.0,0.00038998]
[1609625028970,4.7238,31534.0,31524.0,0.15072998]
[1609625029168,4.7238,31534.0,31524.0,0.15033998]
[1609625029368,0.18043158,31525.0,31524.0,0.15033998]
[1609625030371,0.70693158,31525.0,31524.0,0.00038998]
[1609625030869,0.70693158,31525.0,31523.0,1.0]
[1609625031071,1.70693158,31525.0,31509.0,1.0]
[1609625031271,1.5265,31525.0,31511.0,0.18043158]
[1609625032072,1.0,31525.0,31511.0,0.18043158]
[1609625032273,0.0948,31524.0,31511.0,0.18043158]
[1609625032474,0.583,31523.0,31511.0,0.18043158]
[1609625032676,0.0948,31524.0,31511.0,0.18043158]
[1609625032874,4.7631,31523.0,31511.0,0.18043158]
[1609625033275,0.18043158,31515.0,31511.0,0.18043158]
[1609625034875,0.18043158,31515.0,31509.0,0.11727]
[1609625035077,4.488,31512.0,31509.0,0.11727]
[1609625035278,0.18043158,31510.0,31509.0,0.11727]
[1609625036476,0.18043158,31510.0,31504.0,0.18043158]
[1609625037278,0.13814,31521.0,31508.0,0.18043158]
[1609625037480,4.56764,31521.0,31508.0,0.18043158]
[1609625037978,4.56764,31521.0,31505.0,0.11392]
[1609625038179,0.13814,31521.0,31505.0,0.11392]
[1609625038581,0.13814,31521.0,31505.0,5.14142]
[1609625038779,0.13814,31521.0,31505.0,0.11392]
[1609625039381,0.18043158,31506.0,31505.0,0.11392]
[1609625039981,0.18043158,31506.0,31505.0,5.24852]
[1609625040381,0.13814,31521.0,31505.0,5.24852]
[1609625041283,0.13814,31521.0,31511.0,1.0]
[1609625041483,0.18043158,31512.0,31511.0,1.0]
[1609625042383,0.18043158,31512.0,31511.0,1.6893]
[1609625042585,0.18043158,31512.0,31511.0,1.0]
[1609625045290,0.18043158,31512.0,31510.0,0.18043158]
[1609625046491,0.18043158,31512.0,31505.0,0.11392]
[1609625046692,0.18043158,31512.0,31498.0,5.1069]
[1609625046989,0.18043158,31512.0,31499.0,0.00039034]
[1609625047490,0.18043158,31512.0,31503.0,0.18043158]
[1609625048391,0.18043158,31512.0,31504.0,0.00039083]
[1609625049493,0.18043158,31512.0,31510.0,0.18043158]
[1609625051093,0.18043158,31512.0,31511.0,0.00039083]
[1609625051294,0.18043158,31512.0,31511.0,1.00039083]
[1609625053298,0.18043158,31512.0,31511.0,0.00039083]
[1609625055597,0.2839,31523.0,31511.0,0.00039083]
[1609625055998,0.2839,31523.0,31517.0,4.0243]
[1609625056600,0.2839,31523.0,31518.0,0.00039081]
[1609625057500,0.2839,31523.0,31522.0,0.18043158]
[1609625057899,0.2839,31523.0,31522.0,0.21983475]
[1609625059299,0.2839,31523.0,31522.0,1.21983475]
[1609625061004,0.2839,31523.0,31522.0,1.03940317]
[1609625061202,0.2839,31523.0,31522.0,0.03940317]
[1609625061504,0.2839,31523.0,31516.0,0.18043158]
[1609625061801,0.2839,31523.0,31522.0,0.03940356]
[1609625062002,0.2839,31523.0,31517.0,0.03940386]
[1609625063105,0.2839,31523.0,31519.0,4.5429]
[1609625063306,0.2839,31523.0,31522.0,1.0]
[1609625063705,0.2839,31523.0,31522.0,1.03940235]
[1609625065310,0.2839,31523.0,31522.0,0.03940235]
[1609625065509,0.3782,31523.0,31522.0,0.03940235]
[1609625065710,0.18043158,31526.0,31522.0,0.03940235]
[1609625066711,0.18043158,31526.0,31523.0,0.02]
[1609625067011,0.18043158,31526.0,31524.0,0.03940076]
[1609625067210,0.2938,31545.0,31524.0,0.03940076]
[1609625067613,0.18043158,31530.0,31527.0,0.18043158]
[1609625068113,0.18043158,31530.0,31528.0,0.03939979]
[1609625069314,0.18043158,31530.0,31529.0,1.0]
[1609625069716,0.18043158,31530.0,31529.0,1.03940351]
[1609625070416,0.18043158,31530.0,31529.0,1.00940351]
[1609625070618,0.18043158,31530.0,31529.0,0.03940351]
[1609625071017,0.18043158,31530.0,31527.0,0.03940213]
[1609625071220,0.18043158,31530.0,31529.0,0.03940186]
[1609625071518,0.18043158,31530.0,31527.0,0.21983369]
[1609625071718,0.18043158,31530.0,31529.0,0.0003908]
[1609625072120,0.18043158,31530.0,31528.0,0.03940187]
[1609625072320,0.18043158,31530.0,31529.0,0.0003908]
[1609625072921,0.18043158,31530.0,31528.0,0.0003908]
[1609625073120,0.18043158,31530.0,31529.0,0.0003908]
[1609625073722,0.18043158,31530.0,31528.0,0.00039083]
[1609625073921,0.18043158,31530.0,31529.0,0.00039083]
[1609625074520,0.18043158,31530.0,31527.0,0.00039083]
[1609625074724,0.18043158,31530.0,31529.0,0.00039083]
[1609625074921,0.18043158,31530.0,31528.0,0.00039086]